{"text_format":"3","workbook":"xlsx","n_sheets":3,"sheets":["Deckblatt","Einzelaufstellung","Zweckbeschreibung"],"not_rendered":{"defined_names":3,"comments":2},"read":"whole","date_system":"1900"}

{"sheet":"Deckblatt","index":0,"n_rows":48,"n_cols":33,"rows_kept":48,"merged":[[2,18,2,32],[3,0,3,15],[3,18,3,32],[4,0,5,15],[4,18,4,32],[5,18,7,32],[6,0,6,15],[7,0,7,15],[9,18,14,32],[16,29,16,32],[26,14,26,24],[26,25,26,27],[29,0,29,11],[29,12,29,22],[29,23,29,32],[45,0,45,32],[46,0,46,7],[46,26,46,31]]}
["Landeshauptstadt Dresden, Jugendamt",{"$nulls":31},"Förderung von Trägern der freien Jugendhilfe"]
[]
["Antragsteller:",{"$nulls":17},"Aktenzeichen (sofern bekannt):"]
[]
[{"$nulls":18},"Angebots-/Maßnahmebezeichnung:"]
[]
[]
[]
[]
["Antrags- und Bewilligungsbehörde:                                                                                                                                                                                                                                ",{"$nulls":17},"Fördergegenstand: Sachen/Gegenstände, die beweglich und selbstständig über einen längeren Zeitraum nutzbar sind und deren Anschaffungswert über 800 Euro netto liegt (inkl. MwSt über 952 Euro)."]
["Landeshauptstadt Dresden"]
["Jugendamt, Abt. Kinder-, Jugend- und"]
["Familienförderung, SG Zuschusswesen"]
["Postfach 12 00 20"]
["01001 Dresden "]
[]
["Antrag auf Gewährung einer Zuwendung ",{"$nulls":27},"Jahr:"]
[" - Bewegliche Sachen des Anlagevermögens -"]
["Einrichtungen und Dienste, die folgende Leistungen der Jugendhilfe nach SGB VIII erbringen"]
[]
["(Zutreffendes ankreuzen)"]
["§ 11 (Jugendarbeit)",{"$nulls":17},"§ 12 (Jugendverbandsarbeit)",{"$nulls":11},"§ 13 (Jugendsozialarbeit)"]
[]
["§ 14 (Erzieherischer Kinder- u. Jugendschutz)",{"$nulls":29},"§ 16 (Allg. Förderung d. Erziehung i. d. Familie)"]
[]
[]
["Fördermittelantrag in Höhe von:",{"$nulls":13},{"$f":"Einzelaufstellung!F20","v":0},{"$nulls":10},"EUR"]
["Ansprechperson:"]
["Name",{"$nulls":11},"Telefonnummer:",{"$nulls":10},"E-Mail-Adresse"]
[]
[]
["Erklärung "]
["Der  Antragsteller erklärt, dass:"]
["-",null,"die Angaben im Antrag vollständig und richtig sind,"]
["-",null,"die Grundsätze einer sparsamen und wirtschaftlichen Haushaltsplanung eingehalten wurden,"]
["-",null,"die Gewähr der zweckentsprechenden und wirtschaftlichen Verwendung der Mittel gegeben ist,"]
["-",null,"die fachlichen Voraussetzungen erfüllt werden,"]
["-",null,"gemeinnützige Ziele verfolgt werden;"]
["-",null,"die Gewähr für eine den Zielen des Grundgesetzes förderliche Arbeit gegeben ist."]
[]
["Belehrung"]
["Der  Antragsteller wird belehrt, dass:"]
["-",null,"die Ausgaben, sofern eine Vorsteuerabzugsberechtigung vorliegt, ohne Umsatzsteuer anzugeben sind;"]
[null,null,"es liegt eine Vorsteuerabzugsberechtigung vor: "]
["-",null,"Änderungen, die Auswirkungen auf den Antrag haben, unverzüglich und unaufgefordert anzuzeigen sind."]
["Die Folgeseiten (Einzelaufstellung Ausgaben/Finanzierung und Zweckbeschreibung) sind Bestandteil des Antrages."]
[]
["Ort, Datum",{"$nulls":11},"rechtsverbindliche Unterschrift(en)",{"$nulls":13},"in PC-/Blockschrift"]

{"sheet":"Einzelaufstellung","index":1,"n_rows":26,"n_cols":6,"rows_kept":26,"merged":[[21,4,21,5],[22,4,22,5],[23,4,23,5],[24,4,24,5]]}
["Landeshauptstadt Dresden - Jugendamt",null,"BS-Antrag",{"$f":"Deckblatt!AD17","v":0},"Aktenzeichen:",{"$f":"Deckblatt!S4","v":0}]
[]
["lfd.\nNr.","Sache/Gegenstand","An-\nzahl","Einzelpreis \nin EUR        ","Ausgaben\ngesamt \nin EUR      ","Fördermittel-\nantrag\nin EUR"]
[1,{"$nulls":3},{"$f":"C4*D4","v":0}]
[2,{"$nulls":3},0]
[3,{"$nulls":3},0]
[4,{"$nulls":3},0]
[5,{"$nulls":3},0]
[6,{"$nulls":3},0]
[7,{"$nulls":3},0]
[8,{"$nulls":3},0]
[9,{"$nulls":3},0]
[10,{"$nulls":3},0]
[11,{"$nulls":3},0]
[12,{"$nulls":3},0]
[13,{"$nulls":3},0]
[14,{"$nulls":3},0]
[15,{"$nulls":3},0]
[16,{"$nulls":3},0]
[{"$nulls":3},"gesamt",{"$f":"SUM(E4:E19)","v":0},{"$f":"SUM(F4:F19)","v":0}]
[null,"Finanzierung"]
[{"$nulls":3},"Jugendamt (Fördermittelantrag)",{"$f":"F20","v":0}]
[null,"Eigenmittel in %:",{"$f":"E23*100/E25","v":{"$error":"#DIV/0!"}},"Eigenmittel"]
[{"$nulls":3},"Drittmittel"]
[{"$nulls":3},"gesamt",{"$f":"SUM(E22:F24)","v":0}]
[null,{"$f":"IF(C23<5,\"Es müssen Eigenmittel in Höhe von mindestens 5% erbracht werden.\",\"\")","v":{"$error":"#DIV/0!"}},null,null,{"$f":"IF(E20<>E25,\"Fehler: Ausgaben ungleich Finanzierung\",\"\")","v":""}]

{"sheet":"Zweckbeschreibung","index":2,"n_rows":5,"n_cols":10,"rows_kept":5,"merged":[[0,6,0,7],[4,0,52,7]]}
["Landeshauptstadt Dresden - Jugendamt",null,null,{"$f":"Einzelaufstellung!C1","v":"BS-Antrag"},{"$f":"Einzelaufstellung!D1","v":0},"Aktenzeichen:",{"$f":"Deckblatt!S4","v":0}]
[]
["Zweckbeschreibung (Zweck der Anschaffung, Nutzer/-innen, Einsatzort)"]
[]
[{"$nulls":9},"Absätze einfügen: ALT + Enter"]